Cogmind - Beta 15 @@@ ROGUE MODE // 2025.07.26 @ 22:58:10 Player: bugsniper Result: Destroyed by 1R-V06(R) with Subdweller Beam Cannon Performance ------------- Evolutions (0) 0 Regions Visited (2) 400 Robots Destroyed (15) 75 Value Destroyed (460) 460 Prototype IDs (0) 0 Alien Tech Used (0) 0 Bonus (0) 0 TOTAL SCORE: 935 Bonus ------- None Cogmind --------- Core Integrity 0/250 Matter 280/300 Energy 35/200 System Corruption 0% Temperature Danger (411) Movement Walking (120) Location -10/Subcaves Parts ------- > --- POWER (1) -------- Subdweller Power Source > --- PROPULSION (2) --- Aluminum Leg Aluminum Leg > --- UTILITY (2) ------ (None) > --- WEAPON (2) ------- Subdweller Beam Cannon > --- INVENTORY (5) ---- Aluminum Leg Improved Heat Sink EM Pulse Gun Peak State ------------ > --- POWER ------------ Ion Engine > --- PROPULSION ------- Aluminum Leg Aluminum Leg > --- UTILITY ---------- Scrap Shield > --- WEAPON ----------- Riot Gun Subdweller Laser > --- INVENTORY -------- Subdweller Power Source Aluminum Leg Improved Heat Sink EM Pulse Gun Subdweller Beam Cannon [Rating: 12] Favorites ----------- Power Ion Engine Engine Ion Engine Propulsion Aluminum Leg Leg Aluminum Leg Utility Small Storage Unit Device Terrain Scanner Storage Small Storage Unit Protection Scrap Shield Weapon EM Pulse Gun Energy Gun EM Pulse Gun Energy Cannon Subdweller Beam Cannon Ballistic Gun Assault Rifle Ballistic Cannon Light Cannon Build | -11 -10 -10 ------- Run | Yrd Mat Sub Slots Evolved . | . . . Power . | . . . Propulsion . | . . . Utility . | . . . Weapon . | . . . Parts Attached 19 | . 7 12 Power 2 | . . 2 Engine 2 | . . 2 Core . | . . . Reactor . | . . . Propulsion 3 | . 1 2 Treads . | . . . Leg 3 | . 1 2 Wheel . | . . . Hover . | . . . Flight . | . . . Utility 2 | . 1 1 Device 1 | . 1 . Storage . | . . . Processor . | . . . Hackware . | . . . Protection 1 | . . 1 Artifact . | . . . Weapon 12 | . 5 7 Energy Gun 8 | . 2 6 Energy Cannon 1 | . . 1 Ballistic Gun 1 | . 1 . Ballistic Cannon 2 | . 2 . Launcher . | . . . Special Weapon . | . . . Impact Weapon . | . . . Slashing Weapon . | . . . Piercing Weapon . | . . . Special Melee Weapon . | . . . Unidentified Prototypes . | . . . Parts Lost 10 | . 1 9 Power 2 | . . 2 Propulsion 1 | . . 1 Utility 1 | . . 1 Weapon 6 | . 1 5 Highest Loss Streak 5 | . 1 5 To Critical Strikes . | . . . Average Backups 6 | . 7 5 Power . | . 1 . Propulsion 2 | . 3 1 Utility 1 | . . 1 Weapon 2 | . 1 2 Tool/Special . | . . . Unused Backups 10 | . 7 3 Power . | . . . Propulsion 2 | . 2 . Utility 2 | . . 2 Weapon 6 | . 5 1 Tool/Special . | . . . Average Slot Usage (%) 94 | . 99 91 Engine 13 | . 14 13 Leg 25 | . 28 23 Device 12 | . 13 12 Storage 12 | . 14 12 Protection 1 | . . 1 Energy Gun 16 | . 2 27 Ballistic Gun 8 | . 18 . Ballistic Cannon 3 | . 6 . Peak Build Rating 12 | . 8 12 Average Rating 7 | . 7 8 On Entrance 6 | 6 6 8 Naked Turns . | . . . Heaviest Build 30 | 13 17 30 Greatest Support 20 | 20 20 20 Greatest Overweight (x) 1 | . . 1 Average Overweight (x) . | . . . Largest Inventory Capacity 8 | . 8 8 Average Capacity 7 | . 8 7 Most Carried 8 | . 8 8 Average Carried 6 | . 7 5 Final Capacity 8 | 8 8 5 Final Carried 8 | 6 8 3 Class Distribution -------------------- 100% | Mutant Dominant Class ---------------- Mutant | -10/Materials Mutant | -10/Subcaves Resources | -11 -10 -10 ----------- Run | Yrd Mat Sub Matter Collected 599 | 192 317 90 Remotely . | . . . Salvage Created 730 | . 504 226 Parts 25 | . 16 9 Haulers Intercepted . | . . . Recyclers Shooed 3 | . 3 . Parts Field Recycled . | . . . Retrieved Matter . | . . . Parts Self-Destructed 4 | . . 4 Prevented . | . . . Kills | -11 -10 -10 ------- Run | Yrd Mat Sub Combat Hostiles Destroyed 10 | . 6 4 Guns 6 | . 5 1 Cannons 1 | . 1 . Classes Destroyed 5 | . 4 1 Recycler 3 | . 3 . Operator 1 | . 1 . Watcher 1 | . 1 . Grunt 6 | . 6 . Subdweller 4 | . . 4 Best Kill Streak 3 | . 3 2 Combat Bots Only 2 | . 2 2 Max Kills in Single Turn 2 | . 2 1 Gunslinging 1 | . 1 . Exploded . | . . . Melee . | . . . Uniques/NPCs Destroyed . | . . . Combat | -11 -10 -10 -------- Run | Yrd Mat Sub Hostile Shots Fired 67 | . 30 37 Missed 12 | . 7 5 Hits 55 | . 23 32 Projectile 55 | . 23 32 AOE 7 | . . 7 Critical Strikes 4 | . 1 3 Damage Taken 1522 | . 455 1067 Core 258 | . 43 215 Absorbed by Shields . | . . . Core Remaining (%) 100 | 100 . . Volleys Fired 62 | . 41 21 Largest 2 | . 2 2 Hottest 130 | . 60 130 Shots Fired 124 | . 82 42 Gun 107 | . 66 41 Cannon 17 | . 16 1 Launcher . | . . . Special . | . . . Kinetic 82 | . 82 . Thermal 4 | . . 4 Explosive . | . . . Electromagnetic 38 | . . 38 Robot Hit Streak 26 | . 16 26 Robot Miss Streak 4 | . 4 1 Penetration Max . | . . . Secondary Targets 1 | . 1 . Max Gunslinging Chain 1 | . 1 . Shots Hit Robots 93 | . 55 38 Core Hits 27 | . 19 8 Critical Kills 1 | . 1 . Critical Parts Destroyed . | . . . Critical Strikes 2 | . 1 1 Destroy 1 | . 1 . Corrupt 1 | . . 1 Melee Attacks . | . . . Impact . | . . . Slashing . | . . . Piercing . | . . . Sneak Attacks . | . . . Combat Hostiles . | . . . Follow-up Attacks . | . . . Damage Inflicted 1268 | . 753 515 Guns 1086 | . 599 487 Cannons 182 | . 154 28 Explosions . | . . . Melee . | . . . Ramming . | . . . Kinetic 753 | . 753 . Thermal 47 | . . 47 Explosive . | . . . Electromagnetic 468 | . . 468 Impact . | . . . Slashing . | . . . Piercing . | . . . Highest Corruption . | . . . Average Corruption . | . . . Corruption Purged . | . . . Corruption Blocked . | . . . Overload Shots . | . . . Overflow Damage 11 | . 11 . Projectiles 11 | . 11 . Explosions . | . . . Melee . | . . . Knockbacks 2 | . 2 . Impact . | . . . Kinetic 2 | . 2 . Secondary . | . . . Self-Inflicted Damage 168 | . 168 . Shots 2 | . 2 . Rammed . | . . . Targets Rammed . | . . . Kicked . | . . . Crushed . | . . . Highest Temperature 402 | . 20 402 Average Temperature 100 | . 5 231 Received Heat Transfer 875 | . 192 683 Effects 2 | . . 2 Shutdowns 1 | . . 1 Interference 1 | . . 1 Siege Activations . | . . . Martial Activations . | . . . Shielding Activations . | . . . Robots Disrupted . | . . . Combat Hostiles . | . . . Robots Corrupted 3 | . . 3 Combat Hostiles 3 | . . 3 Parts Fried 8 | . . 8 Impact Corruptions . | . . . Robots Melted . | . . . Combat Hostiles . | . . . Parts Melted 1 | . . 1 Heat Transferred 62 | . . 62 Parts Sabotaged . | . . . Parts Stolen . | . . . Parts Stripped . | . . . Power Chain Reactions . | . . . Alert | -11 -10 -10 ------- Run | Yrd Mat Sub Maximum Alert Level . | . . . Low Security (%) 100 | . 100 . Level 1 . | . . . Level 2 . | . . . Level 3 . | . . . Level 4 . | . . . Level 5 . | . . . High Security . | . . . Max Security . | . . . Peak Influence 98 | . 98 . Initial . | . . . Average 37 | . 37 . Influence Increases 259 | . 259 . Destroy 0b10 Robot/C 120 | . 120 . Destroy 0b10 Robot/NC 25 | . 25 . Destroy Leader 32 | . 32 . Disable Machine 30 | . 30 . Destroy Structure 37 | . 37 . Partial Spotted 15 | . 15 . Influence Decreases 259 | . 191 68 Entered New Map 33 | . . 33 Time Decay 201 | . 181 20 Lost Part 25 | . 10 15 Squads Dispatched 1 | . 1 . Investigation . | . . . Extermination . | . . . Reinforcement 1 | . 1 . Assault . | . . . Garrison . | . . . Intercept . | . . . Searches Triggered . | . . . Construction Impeded . | . . . Haulers Reinforced . | . . . Active Scanning Responses . | . . . Cargo Convoy Interrupts . | . . . Stealth | -11 -10 -10 --------- Run | Yrd Mat Sub Distress Signals 2 | . 2 . Communications Jammed . | . . . Distress Signals . | . . . Times Spotted 19 | . 10 9 Peak Tracking Total 4 | . 3 4 Tactical Retreats . | . . . Traps | -11 -10 -10 ------- Run | Yrd Mat Sub Traps Triggered 2 | . . 2 Indirectly . | . . . Trap Hack Attempts . | . . . Triggered . | . . . Disarmed . | . . . Reprogrammed . | . . . Reused . | . . . Traps Extracted . | . . . Installed . | . . . Triggered . | . . . Machines | -11 -10 -10 ---------- Run | Yrd Mat Sub Machines Disabled 2 | . 2 . Max in Single Turn 2 | . 2 . Machines Repaired . | . . . Machines Dismantled . | . . . Machines Sabotaged . | . . . Overloaded Fab Kills . | . . . Hacking | -11 -10 -10 --------- Run | Yrd Mat Sub Machines Accessed . | . . . Terminals . | . . . Fabricators . | . . . Repair Stations . | . . . Recycling Units . | . . . Scanalyzers . | . . . Garrison Access . | . . . Total Hacks . | . . . Successful . | . . . Failed . | . . . Catastrophic . | . . . Database Lockouts . | . . . Manual . | . . . Terminals . | . . . Fabricators . | . . . Repair Stations . | . . . Recycling Units . | . . . Scanalyzers . | . . . Garrison Access . | . . . Terminal Hacks . | . . . Fabricator Hacks . | . . . Repair Station Hacks . | . . . Recycling Unit Hacks . | . . . Scanalyzer . | . . . Garrison Access Hacks . | . . . Unauthorized Hacks . | . . . Terminals . | . . . Fabricators . | . . . Repair Stations . | . . . Recycling Units . | . . . Scanalyzers . | . . . Garrison Access . | . . . Data Cores Recovered . | . . . Used . | . . . Hacking Detections . | . . . Full Trace Events . | . . . Feedback Events . | . . . Feedback Blocked . | . . . Robot Schematics Acquired . | . . . Robots Built . | . . . Authchips . | . . . Time . | . . . Total Robot Build Rating . | . . . Part Schematics Acquired . | . . . Parts Built . | . . . Authchips . | . . . Time . | . . . Total Part Build Rating . | . . . Parts Repaired . | . . . Time . | . . . Parts Recycled . | . . . Recycled Matter . | . . . Retrieved Matter . | . . . Retrieved Components . | . . . Parts Scanalyzed . | . . . Part Schematics Acquired . | . . . Parts Damaged . | . . . Bothacking | -11 -10 -10 ------------ Run | Yrd Mat Sub Used RIF Installer . | . . . Robots Hacked . | . . . Non-combat . | . . . Combat . | . . . Robot Hacks Applied . | . . . Relay Couplers Released . | . . . Fabnet Peak Effective % . | . . . Robots Rewired . | . . . Allies Hacked . | . . . Hacks Repelled . | . . . Allies | -11 -10 -10 -------- Run | Yrd Mat Sub Total Allies . | . . . Largest Group . | . . . Highest-Rated Group . | . . . Highest-Rated Ally . | . . . Total Orders . | . . . Ally Attacks . | . . . Total Damage . | . . . Kills . | . . . Allies Corrupted . | . . . Allies Melted . | . . . Intel | -11 -10 -10 ------- Run | Yrd Mat Sub Active Infowar (turns) 610 | . 471 139 Terrain 610 | . 471 139 Robot Analysis Total . | . . . Derelict Logs Recovered . | . . . Drone Launches . | . . . Drone Recoveries . | . . . Exploration | -11 -10 -10 ------------- Run | Yrd Mat Sub Turns Passed 1105 | . 481 624 Spaces Moved 606 | 1 255 350 Core . | . . . Treads . | . . . Legs 606 | 1 255 350 Wheels . | . . . Hover . | . . . Flight . | . . . Fastest Speed 120 | 120 120 120 Average Speed 134 | 120 120 145 Slowest Speed 190 | 120 120 190 Overloaded Moves . | . . . Propulsion Burnouts . | . . . Robots Hopped . | . . . Potential Cave-ins . | . . . Cave-ins Triggered . | . . . Exploration Rate (%) 19 | 2 34 21 Regions Visited 2 Branch Regions 1 Pre-discovered Areas 1 | . . 1 Known Exits Taken . | . . . Unknown Exits Taken 2 | 1 1 . Scrap Searched . | . . . Spaces Dug . | . . . Terrain Destroyed 39 | . 38 1 Melee . | . . . Projectile 1 | . . 1 AOE 38 | . 38 . Terrain Rammed . | . . . Walls Destroyed . | . . . Machines Disabled . | . . . Actions | -11 -10 -10 --------- Run | Yrd Mat Sub Total 772 | . 352 420 Wait 53 | . 28 25 Move 604 | . 254 350 Hop . | . . . Pick Up 17 | . 11 6 Fast Attach 4 | . 3 1 Attach 8 | . 1 7 Detach . | . . . Swap 7 | . 3 4 Drop 17 | . 11 6 Fire 62 | . 41 21 Melee . | . . . Ram . | . . . Kick . | . . . Crush . | . . . Escape Stasis . | . . . Rewire . | . . . Trap . | . . . Miscellaneous . | . . . Route ------- -11/Scrapyard -10/Materials (discovered 3 exits: [*Mat x2] / [*Sub]) -10/Subcaves History --------- Turn | Location | Event 1 | -11/Scrapyard | Discovered new exit (range 0) 1 | -11/Scrapyard | Entered Materials 325 | -10/Materials | Build established: Mutant 354 | -10/Materials | Discovered new exit (range 12) 399 | -10/Materials | Discovered new exit (range 9) 443 | -10/Materials | Discovered new exit (range 13) 482 | -10/Materials | Entered Subcaves 483 | -10/Subcaves | Approached by a straggling Scientist 534 | -10/Subcaves | Ambushed by Subdweller buried in earth 565 | -10/Subcaves | Lost 5 parts (1p1n3w) 874 | -10/Subcaves | Core integrity fell below 50% 883 | -10/Subcaves | Learned location of Zion (-7) 883 | -10/Subcaves | Met a Zionite searching for "candidates" 1082 | -10/Subcaves | Ambushed by Subdwellers from Twisted Machinery 1090 | -10/Subcaves | Ambushed by Subdweller buried in earth 1093 | -10/Subcaves | Ambushed by Subdweller buried in earth 1104 | -10/Subcaves | Core integrity fell below 20% 1106 | -10/Subcaves | Destroyed by 1R-V06(R) with Subdweller Beam Cannon Last Messages --------------- Unit. 01082_ GE-0AY(R) emerges from the Twisted Machinery. 01084_ Subatomizers dissect the Sml. Storage Unit. 01085_ UC-DUM(c) destroyed. 01091_ QT-BCS(R): "ARGHSUB!" 01091_ Ion Engine destroyed. 01093_ Scrap Shield destroyed. 01093_ Critical hit (Meltdown: +270). 01094_ AI-3AL(R): "ARGHSUB!" 01094_ Subatomizers dissect the Sml. Storage Unit. 01099_ Sub. Laser destroyed. 01104_ Critical hit (Meltdown: +290). 01105_ Power failure, Sub. Power Source shutdown. 01105_ Riot Gun destroyed. 01106_ Overheating: System interference. 01106_ Sub. Beam Cannon temporarily disabled. Map ----- +----------------------------------------------------+ | ????????????? ??#?# ##????????# ##???????? | | ??????????????????## #?????????# ##??????? | | ???????????????????# #?????????# #??????? | | ???????????????????# #??????#??# #??????? | | ???????????????????## ##????##### #####??????? | | ????????????????????# ##??? ## #?????????? | | ????????????????????# ##?? ## #?????????? | | ???????????????????## ##?# #?????????? | | ????????????????????# ### ### ####??????? | | ????????????#???????## ## # #??????? | | ?????????????????????#### #??????? | | ????????????????????????# #??????? | | ???????????????????????## # # ##????????? | | ??????????????????????## #?#####?????????? | | ??????????????????????# #?????#?????????? | | ?????????????????????# ## ##???????????????? | | ????????????????????# ### ##???????????????? | | ?????????? ???????## ##?##[ ##??????##??????? | | ??????????" ?????## #???## ##????# ##?????? | | ??????????? ????# #????# #??## #?????? | | ???????????" ##?# ######## #?## #?????? | | ???????????" " ### #; ; ### #?????? | | ????????????"" ###; ; #??????? | | ?????????????# R ##??????? | | ??????????????# R #### #???????? | | ???????????## # @ ##?######???????? | | ?????????? R !!###????????????? | | ?????????? ! [ #????#???????? | | ??????????? ; ## [ #????????????? | | ???????????##;; ; ### ###??#?????????? | | ????????????# ;;;;;# ## ##?###??????????????? | | ????????????# ?#####?? ###???????????????????? | | ????????????#####?????????##?????????????????????? | | ?????????????????????????????????????????????????? | | ?????????????????????????????????????????????????? | | ?????????????????????????????????????????????????? | | ????????????????????????????????????????#????????? | | ?????????????????????????????????????????????????? | | ?????????????????????????????????????????????????? | | ?????????????????????????????????????????????????? | | ?????????????????????????????????????????????????? | | ?????????????????????????????????????????????????? | | ?????????????????????????????????????????????????? | | ?????????????????????????????????????????????????? | | ?????????????????????????????????????????????????? | | | | | | | | | | | +----------------------------------------------------+ Best States ------------- Heat Dissipation 25 Energy Generation 10 Energy Capacity 250 Matter Stores 300 Matter Capacity 300 Sight Range 16 Terrain Scan Range 14 Terrain Scan Density 10 Armor Coverage 800 Evasion (%) 55 Item Schematics ----------------- None Robot Schematics ------------------ None Fabricated ------------ Nothing Repaired ---------- Nothing Alien Tech Used ----------------- None Achievements -------------- None Challenges ------------ None Game ------ Seed SalvagingLargeBattery Manual? 0 Play Time 00:16:12 Cumulative 416.1 hours Start 2025.07.26 @ 22:47:44 End 2025.07.26 @ 22:58:10 Sessions 1 Manual Loads 0 Difficulty Rogue Special Mode None Game No. 228 Rogue 228 Adventurer 0 Explorer 0 Win Type - Total 11 Types 10/0/1/0/0/0/0/0/0/0 Lore% 43 Gallery% 63 Achievement% 52 Wizard Run 0 Options --------- Layout 1 ASCII 0 Keyboard 0 Movement Numpad Keybinds 0 Fullscreen 1 Font 24/Smallcaps Map View 50x35 Zoom Use 0% Tactical HUD 1 Map Filters NONE Filters NONE Steam 1 RUN: 78ae097c-66a5-4b15-af4b-f1dc36e8ff3f